bitfinex/quotes_SOLUSD_20260115
["timestamp","ask_amount","ask_price","bid_price","bid_amount"]
[1768497303806,0.59698926,143.02,142.98,7.59360048]
[1768497303990,0.59698926,143.02,142.98,12.85894047]
[1768497304611,0.59698926,143.02,142.98,30.3439034]
[1768497306311,0.59698926,143.02,143.0,6.99300699]
[1768497307522,0.59698926,143.02,142.99,6.99349604]
[1768497308632,0.59698926,143.02,142.92,11.57528288]
[1768497308915,0.59698926,143.02,142.89,6.99797112]
[1768497308916,5.34408856,142.98,142.89,6.99797112]
[1768497309220,5.26533999,142.92,142.88,0.4436801]
[1768497309416,6.8,142.91,142.88,0.4436801]
[1768497310292,12.06533999,142.91,142.88,0.4436801]
[1768497310724,19.06275924,142.91,142.88,0.4436801]
[1768497310904,13.79741925,142.91,142.88,0.4436801]
[1768497311105,13.79741925,142.91,142.86,0.5999489]
[1768497311311,8.48057022,142.98,142.87,0.5999489]
[1768497311515,13.79447436,142.97,142.91,0.5999489]
[1768497311717,0.025894,142.95,142.91,0.5699489]
[1768497312113,6.8,142.95,142.88,24.49604413]
[1768497312306,6.8,142.95,142.92,13.09431554]
[1768497312510,6.8,142.96,142.91,13.09431554]
[1768497312712,6.8,142.96,142.88,17.49720044]
[1768497313305,6.8,142.96,142.91,13.09431554]
[1768497313509,6.8,142.96,142.88,17.49720044]
[1768497313732,6.99456581,142.97,142.93,0.5999489]
[1768497314022,6.78,142.96,142.92,13.69426444]
[1768497314400,6.78,142.96,142.92,0.5999489]
[1768497315113,13.77508711,142.96,142.92,0.5999489]
[1768497316216,20.11215997,142.97,142.92,7.59663957]
[1768497316396,20.11215997,142.97,142.92,0.5999489]
[1768497316397,6.78,142.96,142.92,0.5999489]
[1768497317219,13.7749851,142.96,142.92,0.5999489]
[1768497318401,17.48153175,143.01,142.95,0.5999489]
[1768497318599,20.08683354,143.01,142.96,0.5999489]
[1768497318822,6.78,143.0,142.96,0.5999489]
[1768497319725,19.87431554,143.0,142.96,0.5999489]
[1768497320226,6.78,143.0,142.96,0.5999489]
[1768497320622,6.78,143.0,142.96,7.59477546]
[1768497321119,6.76,143.0,142.96,7.59477546]
[1768497321501,20.08683354,143.01,142.96,7.59477546]
[1768497321741,17.47770272,143.04,142.99,0.61705199]
[1768497321916,6.76,143.02,142.99,0.58705199]
[1768497322224,6.76,143.02,142.99,0.55705199]
[1768497322525,6.76,143.02,142.97,6.9939983]
[1768497322526,13.14936162,143.01,142.97,6.9939983]
[1768497323039,26.90143711,143.02,142.97,20.08831384]
[1768497323400,26.90143711,143.02,142.98,6.99398091]
[1768497323401,20.14143711,143.02,142.98,6.99398091]
[1768497323605,6.76,143.01,142.98,6.99398091]
[1768497324106,6.76,143.01,142.97,13.71136753]
[1768497324331,6.76,143.01,142.97,0.61705199]
[1768497325428,6.99172769,143.03,142.99,0.58373939]
[1768497325626,6.74,143.02,142.99,0.58373939]
[1768497326630,13.7320368,143.02,142.98,0.58373939]
[1768497326821,26.86857864,143.02,142.98,0.58373939]
[1768497327222,13.7742631,143.02,142.98,0.58373939]
[1768497327427,26.86857864,143.02,142.98,7.57770559]
[1768497327743,26.86857864,143.02,142.98,0.58373939]
[1768497328451,13.09431554,142.99,142.95,0.58373939]
[1768497328610,0.03739273,143.0,142.95,0.58373939]
[1768497328611,13.09431554,143.0,142.96,0.58373939]
[1768497329034,13.09431554,143.0,142.97,0.58373939]
[1768497329342,8.08475316,143.01,142.97,0.58373939]
[1768497330040,8.04736043,143.01,142.97,0.58373939]
[1768497330641,15.04028708,143.01,142.97,0.58373939]
[1768497331033,15.04028708,143.01,142.97,7.5781641]
[1768497331546,6.99292665,143.01,142.97,7.5781641]
[1768497331738,10.37271712,143.01,142.98,0.58373939]
[1768497331936,17.47810405,143.04,142.98,0.58373939]
[1768497331937,0.06034858,143.04,142.98,0.55373939]
[1768497332241,6.72,143.03,142.98,3.37979047]
[1768497332538,10.09979047,143.03,142.97,27.86040109]
[1768497332850,17.09139713,143.03,142.97,27.86040109]
[1768497333543,13.71160666,143.03,142.97,27.86040109]
[1768497333721,17.09139713,143.03,142.97,27.86040109]
[1768497333920,17.09139713,143.03,142.99,0.58373939]
[1768497334117,13.71160666,143.03,142.99,0.58373939]
[1768497334321,17.09139713,143.03,142.99,0.58373939]
[1768497335635,13.71160666,143.03,142.99,7.57715406]
[1768497337040,6.99160666,143.03,142.99,7.57715406]
[1768497337546,6.7,143.02,142.99,7.57715406]
[1768497337726,6.99160666,143.03,142.99,7.57715406]
[1768497338346,6.7,143.02,142.99,7.57715406]
[1768497338545,6.99160666,143.03,142.99,7.57715406]
[1768497338721,6.7,143.02,142.99,7.57715406]
[1768497338923,6.99160666,143.03,142.99,7.57715406]
[1768497339449,6.7,143.02,142.99,7.57715406]
[1768497340542,0.05805426,143.04,142.99,25.06089418]
[1768497340754,0.05805426,143.04,142.99,28.44068465]
[1768497340943,0.05805426,143.04,142.99,10.95694453]
[1768497341634,3.43784473,143.04,142.99,7.57715406]
[1768497342548,0.05805426,143.04,142.99,7.57715406]
[1768497342742,3.43784473,143.04,142.99,7.57715406]
[1768497343531,10.42929495,143.04,142.99,7.57715406]
[1768497343728,7.04950448,143.04,143.0,0.58373939]
[1768497343923,7.02526473,143.06,143.01,0.58373939]
[1768497344250,13.67009973,143.06,143.02,0.58373939]
[1768497344754,13.70313468,143.06,143.02,0.58373939]
[1768497345336,13.70313468,143.06,143.02,7.57545155]
[1768497345530,6.71303495,143.06,143.02,7.57545155]
[1768497346440,13.70319813,143.06,143.02,7.57545155]
[1768497347142,17.0829886,143.06,143.02,0.58373939]
[1768497348056,13.70319813,143.06,143.02,0.58373939]
[1768497348234,17.0829886,143.06,143.02,0.58373939]
[1768497350352,0.02370092,143.04,143.0,0.58373939]
[1768497350855,3.39990615,143.05,143.0,0.58373939]
[1768497351954,24.15518523,143.06,143.01,0.53585282]
[1768497352146,27.5349757,143.06,143.01,0.53585282]
[1768497353544,6.99059941,143.05,143.01,0.53585282]
[1768497353745,10.37038988,143.05,143.01,0.53585282]
[1768497354862,6.99059941,143.05,143.01,0.53585282]
[1768497355065,10.37038988,143.05,143.01,0.53585282]
[1768497356553,6.99059941,143.05,143.01,0.53585282]
[1768497358367,10.37038988,143.05,143.01,0.53585282]
[1768497358569,10.37038988,143.05,143.0,0.53585282]
[1768497358743,3.37979047,143.03,142.97,0.53585282]
[1768497358938,24.46700626,143.05,142.97,0.53585282]
[1768497358939,9.99979047,143.02,142.97,7.53009994]
[1768497359165,9.99979047,143.01,142.97,0.53585282]
[1768497359357,9.99979047,143.0,142.96,0.53585282]
[1768497359550,9.99979047,143.0,142.96,7.53062876]
[1768497359751,6.62,143.0,142.97,0.53585282]
[1768497360142,6.62,143.0,142.98,6.99398517]
[1768497360339,10.37188649,143.02,142.98,0.53585282]
[1768497360545,9.99979047,143.01,142.98,0.53585282]
[1768497360750,6.62,143.0,142.98,0.53585282]
[1768497361065,6.62,143.0,142.96,0.53585282]
[1768497361369,9.99979047,143.0,142.97,0.53585282]
[1768497362765,6.62,143.0,142.98,0.53585282]
[1768497362945,6.6,143.0,142.98,0.53585282]
[1768497363146,6.6,143.01,142.98,0.53585282]
[1768497364374,6.6,143.01,142.99,0.53585282]
[1768497365164,6.6,143.01,142.98,7.52982664]
[1768497365165,9.91979048,143.01,142.98,7.52982664]
[1768497365466,9.91979048,143.01,142.96,17.48665254]
[1768497365467,16.97242733,143.01,142.96,0.53585282]
[1768497366153,16.97242733,143.01,142.97,0.53585282]
[1768497367768,3.37979047,143.0,142.96,6.99462756]
[1768497367946,3.37979047,142.98,142.94,0.53585282]
[1768497368145,16.954401,142.97,142.93,7.53221603]
[1768497368870,9.95979047,142.97,142.94,7.53168749]
[1768497369065,6.58,142.97,142.94,7.53168749]
[1768497370173,6.58,142.97,142.95,0.53585282]
[1768497370551,10.90947268,143.01,142.96,0.53585282]
[1768497370751,6.58,143.0,142.96,0.53585282]
[1768497371061,10.49695468,143.0,142.96,0.53585282]
[1768497371266,10.43695469,143.0,142.96,0.53585282]
[1768497371478,6.58,142.99,142.96,0.53585282]
[1768497371973,6.52000001,142.99,142.96,7.53074557]
[1768497373881,6.56,142.99,142.97,0.53585282]
[1768497374285,10.47695468,142.99,142.95,7.53120934]
[1768497374493,0.53716421,142.98,142.95,6.99535652]
[1768497374778,3.91695468,142.98,142.95,6.99535652]
[1768497375274,10.47695468,142.99,142.95,7.53120934]
[1768497375472,17.47078485,142.99,142.95,0.53585282]
[1768497375669,16.93362064,142.99,142.95,0.53585282]
[1768497375984,16.93362064,142.99,142.94,7.53167767]
[1768497375985,3.91695468,142.98,142.94,7.53167767]
[1768497376276,3.37979047,142.98,142.95,0.53585282]
[1768497376876,14.09099438,142.99,142.95,0.53585282]
[1768497377175,6.99311115,143.0,142.96,0.53585282]
[1768497377359,6.56,143.0,142.96,6.99459797]
[1768497377559,6.56,143.0,142.97,0.53585282]
[1768497378363,6.50000001,143.0,142.97,0.53585282]
[1768497379986,6.99258952,143.01,142.97,0.53585282]
[1768497380155,13.53258952,143.01,142.97,0.53585282]
[1768497380360,14.06975373,143.01,142.97,0.53585282]
[1768497381759,14.06975373,143.01,142.98,0.54599614]
[1768497381960,13.53258952,143.01,142.98,0.54599614]
[1768497382374,6.99258952,143.01,142.98,0.54599614]
[1768497382974,13.53258952,143.01,142.98,0.54599614]
[1768497383573,0.5362574,143.02,142.99,0.54599614]
[1768497383574,13.53217024,143.02,142.99,0.54599614]
[1768497385869,14.05481351,143.02,142.99,0.54599614]
[1768497386888,17.43460398,143.02,142.99,0.54599614]
[1768497388785,13.53217024,143.02,142.99,0.54599614]
[1768497389799,6.54,143.02,143.0,0.51011576]
[1768497389974,6.5,143.03,143.0,0.51011576]
[1768497390868,7.02264327,143.03,143.0,0.51011576]
[1768497391801,6.5,143.03,143.0,0.51011576]
[1768497391975,13.49157184,143.03,143.0,0.51011576]
[1768497393680,0.52264327,143.01,142.95,0.51011576]
[1768497393876,0.52264327,143.01,142.96,0.51011576]
[1768497393877,5.74125771,143.01,142.96,0.51011576]
[1768497394497,0.46264328,143.01,142.96,0.51011576]
[1768497394677,5.74125771,143.01,142.96,0.51011576]
[1768497395083,5.74125771,143.01,142.97,0.51011576]
[1768497395084,13.47300699,143.0,142.97,0.51011576]
[1768497395284,13.413007,143.0,142.97,0.51011576]
[1768497395898,6.48,143.0,142.97,0.51011576]
[1768497397676,13.47314983,143.0,142.97,0.51011576]
[1768497398800,13.41314984,143.0,142.97,0.51011576]
[1768497400396,13.87828908,143.0,142.96,7.50493402]
[1768497400600,13.87828908,143.0,142.97,0.51011576]
[1768497404083,13.87828908,143.0,142.96,0.51011576]
[1768497405306,13.81828909,143.0,142.96,7.50495672]
[1768497406185,13.81828909,143.0,142.96,6.99484096]
[1768497406405,13.81828909,143.0,142.97,0.51011576]
[1768497406604,0.45919295,142.99,142.95,7.5053623]
[1768497406793,5.73780738,142.98,142.94,0.51011576]
[1768497407101,5.67780739,142.98,142.94,0.51011576]
[1768497407300,0.39919296,142.98,142.94,0.51011576]
[1768497407491,0.39919296,142.98,142.95,0.51011576]
[1768497408505,7.39329109,142.98,142.95,0.51011576]
[1768497410083,5.67540255,142.96,142.92,0.51011576]
[1768497410285,0.39678812,142.96,142.92,0.51011576]
[1768497411006,7.39199269,142.96,142.92,0.51011576]
[1768497411512,12.67060712,142.96,142.92,0.53367145]
[1768497411988,7.39199269,142.96,142.92,0.53367145]
[1768497412194,13.82909723,142.97,142.93,0.53367145]
[1768497412614,13.76909724,142.97,142.93,0.53367145]
[1768497413110,19.04771167,142.97,142.93,0.53367145]
[1768497416312,13.76909724,142.97,142.93,0.53367145]
[1768497416505,19.04771167,142.97,142.93,0.53367145]
[1768497416808,5.67029208,142.96,142.92,0.53367145]
[1768497417202,6.42,142.96,142.93,0.53367145]
[1768497417406,7.38630968,142.97,142.93,0.53367145]
[1768497417797,6.7911392,142.96,142.93,0.53367145]
[1768497417997,0.3911392,142.96,142.93,0.53367145]
[1768497418313,7.38611967,142.96,142.93,0.53367145]
[1768497418811,6.4,142.97,142.94,0.53367145]
[1768497419388,7.38459221,142.98,142.94,0.53367145]
[1768497419599,6.4,142.97,142.94,0.53367145]
[1768497419810,7.38459221,142.98,142.94,0.53367145]
[1768497420000,6.4,142.97,142.94,0.53367145]
[1768497420515,7.38459221,142.98,142.94,0.53367145]
[1768497420817,6.99370859,142.99,142.95,0.53367145]
[1768497420992,6.4,142.98,142.95,0.53367145]
[1768497422812,0.38853833,142.97,142.93,7.5298255]
[1768497423019,5.60715277,142.97,142.93,0.53367145]
[1768497423402,5.27861443,142.97,142.93,0.53367145]
[1768497423601,36.15763057,142.98,142.93,0.53367145]
[1768497424403,36.15763057,142.98,142.94,0.53367145]
[1768497424604,30.87901614,142.98,142.94,0.53367145]
[1768497424921,36.4851699,142.98,142.94,0.53367145]
[1768497426808,6.9935743,142.99,142.95,0.53367145]
[1768497427012,6.38,142.98,142.95,0.53367145]
[1768497427601,6.32000001,142.98,142.95,0.53367145]
[1768497427820,11.92469788,142.98,142.95,0.53367145]
[1768497428014,11.59861444,142.98,142.95,0.53367145]
[1768497429227,11.63861443,142.98,142.95,0.53367145]
[1768497429726,6.36,142.98,142.95,0.53367145]
[1768497430327,13.35399597,142.98,142.95,0.53367145]
[1768497430623,0.32473933,142.97,142.93,7.53003099]
[1768497430809,31.16369823,142.98,142.94,0.53367145]
[1768497431127,36.44231266,142.98,142.94,0.53367145]
[1768497432724,0.32386879,142.97,142.92,7.5305928]
[1768497432930,5.27861443,142.96,142.93,0.53367145]
[1768497433126,5.60248322,142.96,142.92,0.53367145]
[1768497433312,0.32386879,142.97,142.93,0.53367145]
[1768497434030,5.60248322,142.97,142.93,0.53367145]
[1768497434529,11.94248322,142.97,142.93,0.53367145]
[1768497435510,6.99496362,142.96,142.93,0.53367145]
[1768497435716,6.93496363,142.96,142.93,0.53367145]
[1768497435916,18.93717067,142.97,142.93,0.53367145]
[1768497436131,5.27861443,142.96,142.93,0.53367145]
[1768497436505,18.93717067,142.97,142.93,0.53367145]
[1768497437130,12.59717067,142.97,142.93,7.52994102]
[1768497437330,18.93717067,142.97,142.94,0.53367145]
[1768497438426,7.31855624,142.97,142.94,0.53367145]
[1768497438617,6.34,142.97,142.94,0.53367145]
[1768497439730,6.34,142.97,142.95,0.53367145]
[1768497441328,12.59312512,142.98,142.95,0.53367145]
[1768497441530,7.31451069,142.98,142.95,0.53367145]
[1768497441729,12.59312512,142.98,142.95,0.53367145]
[1768497442248,0.31980541,143.01,142.95,0.53367145]
[1768497442412,17.48079024,143.02,142.97,0.49892202]
[1768497442604,13.63145338,143.02,142.98,0.49892202]
[1768497443826,7.31145338,143.02,142.98,0.49892202]
[1768497444031,13.63145338,143.02,142.98,0.49892202]
[1768497444233,18.91006781,143.02,142.98,0.49892202]
[1768497444427,12.59006781,143.02,142.98,0.49892202]
[1768497444633,13.63145338,143.02,142.98,0.49892202]
[1768497444835,7.31145338,143.02,142.98,0.49892202]
[1768497445021,12.59006781,143.02,142.98,0.49892202]
[1768497445217,18.91006781,143.02,142.98,0.49892202]
[1768497445423,13.63145338,143.02,142.98,0.49892202]
[1768497445921,18.91006781,143.02,142.98,0.49892202]
[1768497446119,12.59006781,143.02,142.98,0.49892202]
[1768497446318,18.89006781,143.02,142.98,0.49892202]
[1768497450347,13.60855791,143.02,142.98,0.51013972]
[1768497450517,18.88717234,143.02,142.98,0.51013972]
[1768497451422,16.98795898,143.02,142.98,0.51013972]
[1768497452725,6.3,143.02,142.98,0.51013972]
[1768497453036,6.3,143.02,142.99,0.51013972]
[1768497453213,16.96624021,143.04,142.99,0.51013972]
[1768497453419,16.96624021,143.04,142.99,7.50344835]
[1768497453617,16.96624021,143.04,143.0,0.51013972]
[1768497454234,13.58683914,143.04,143.0,0.51013972]
[1768497454637,0.31485043,143.03,143.0,0.51013972]
[1768497455342,16.96558046,143.04,143.0,0.51013972]
[1768497456041,13.58617939,143.04,143.01,0.51013972]
[1768497456242,20.85649425,143.05,143.01,0.51013972]
[1768497456243,7.30527236,143.05,143.01,0.51013972]
[1768497457242,6.26,143.04,143.01,0.51013972]
[1768497457548,6.57420576,143.04,143.01,0.51013972]
[1768497458249,0.31420576,143.04,143.01,0.51013972]
[1768497458448,6.57420576,143.04,143.01,0.51013972]
[1768497458849,13.565579,143.04,143.01,0.51013972]
[1768497459231,7.305579,143.04,143.01,0.51013972]
[1768497459431,13.565579,143.04,143.01,0.51013972]
[1768497459646,7.305579,143.04,143.01,0.51013972]
[1768497460229,13.565579,143.04,143.01,0.51013972]
[1768497460932,7.305579,143.04,143.01,0.51013972]
[1768497461840,6.99137324,143.04,143.01,0.51013972]
[1768497463833,6.99066929,143.05,143.02,0.51013972]
[1768497464032,13.23026498,143.06,143.02,0.51013972]
[1768497464635,11.88278163,143.06,143.02,0.51013972]
[1768497465437,11.57093647,143.06,143.03,0.51013972]
[1768497466152,4.58074568,143.06,143.04,0.51013972]
[1768497467138,11.57093742,143.06,143.04,0.51013972]
[1768497467338,6.99019174,143.06,143.04,0.51013972]
[1768497467557,7.3008916,143.07,143.04,0.51013972]
[1768497470938,6.98969497,143.07,143.04,0.51013972]
[1768497471132,13.20927579,143.08,143.04,0.51013972]
[1768497471336,11.63488058,143.09,143.06,0.52057871]
[1768497472838,3.68868885,143.08,143.04,0.52057871]
[1768497473150,0.30928778,143.08,143.04,0.52057871]
[1768497474155,0.30928778,143.08,143.03,10.37083236]
[1768497474156,0.30902747,143.07,143.03,0.52057871]
[1768497474351,3.68842854,143.07,143.03,0.52057871]
[1768497474842,7.29884425,143.06,143.03,0.52057871]
[1768497475334,6.99007409,143.06,143.03,0.52057871]
[1768497475740,6.99007409,143.06,143.01,6.99231578]
[1768497475741,3.68791686,143.05,143.01,0.52057871]
[1768497475949,0.30851579,143.04,143.01,0.52057871]
[1768497476151,3.68791686,143.04,143.01,0.52057871]
[1768497476550,0.30826435,143.05,143.01,0.52057871]
[1768497476755,6.99105145,143.04,143.01,0.52057871]
[1768497479055,10.37045252,143.04,143.01,0.52057871]
[1768497479366,6.93105146,143.04,143.01,0.52057871]
[1768497479668,10.31045253,143.04,143.01,0.52057871]
[1768497479843,10.61797976,143.04,143.01,0.52057871]
[1768497480165,3.37940107,143.02,142.98,7.51437601]
[1768497480544,3.68668821,143.01,142.98,0.52057871]
[1768497480864,3.68668821,142.99,142.96,0.52057871]
[1768497481051,3.37940107,142.98,142.96,0.52057871]
[1768497481251,3.37940107,142.97,142.94,0.52057871]
[1768497481454,3.37940107,142.96,142.92,0.52057871]
[1768497481857,3.37940107,142.95,142.92,0.52057871]
[1768497482058,10.37436469,142.96,142.92,0.52057871]
[1768497482447,10.37436469,142.96,142.93,0.52057871]
[1768497483387,0.30681521,142.95,142.9,0.52057871]
[1768497483667,3.37940107,142.91,142.89,0.52057871]
[1768497483968,10.37651939,142.92,142.89,0.52057871]
[1768497486171,10.68261,142.93,142.89,7.51890622]
[1768497486865,10.3760267,142.93,142.9,0.52057871]
[1768497488270,3.37940107,142.92,142.89,0.52057871]
[1768497489251,10.6817087,142.93,142.89,0.52057871]
[1768497490178,3.37940107,142.92,142.89,0.52057871]
[1768497492667,6.99662563,142.93,142.89,0.52057871]
[1768497492859,10.3760267,142.93,142.89,0.52057871]
[1768497493056,10.68063909,142.93,142.89,0.52057871]
[1768497493657,3.37940107,142.92,142.89,0.52057871]
[1768497494152,10.68063909,142.93,142.9,0.52057871]
[1768497494356,6.14,142.94,142.9,0.52057871]
[1768497494557,9.51940107,142.95,142.9,0.52057871]
[1768497495053,6.14,142.95,142.9,0.52057871]
[1768497495256,6.14,142.95,142.92,0.52057871]
[1768497495483,16.81822379,142.97,142.92,0.52057871]
[1768497496068,10.37402224,142.97,142.92,0.52057871]
[1768497496281,10.67802191,142.97,142.92,0.52057871]
[1768497497272,3.37940107,142.96,142.93,0.52057871]
[1768497498364,0.30360282,142.95,142.9,7.51803796]
[1768497498588,3.37940107,142.92,142.89,0.52057871]
[1768497499686,6.99677261,142.93,142.89,0.52057871]
[1768497499990,3.37940107,142.92,142.89,0.52057871]
[1768497500168,10.37617368,142.93,142.9,0.52057871]
[1768497501072,0.30283611,142.92,142.88,7.48599311]
[1768497501259,3.68223718,142.92,142.88,7.48599311]
[1768497501459,3.37940107,142.92,142.89,0.48739041]
[1768497501887,10.37640359,142.92,142.89,0.48739041]
[1768497503214,6.12,142.94,142.9,0.48739041]
[1768497503586,6.12,142.94,142.92,0.48739041]
[1768497503816,10.3745671,142.96,142.92,0.48739041]
[1768497503991,6.99516603,142.96,142.92,0.48739041]
[1768497504811,10.3745671,142.96,142.92,0.48739041]
[1768497505200,6.12,142.97,142.92,0.48739041]
[1768497505507,16.79572481,142.97,142.92,0.48739041]
[1768497505801,16.49397433,142.97,142.94,0.50538427]
[1768497506804,13.11457326,142.97,142.94,0.50538427]
[1768497507013,16.49397433,142.97,142.94,0.50538427]
[1768497508015,16.79537934,142.97,142.93,0.50538427]
[1768497508484,16.49397433,142.97,142.93,0.50538427]
[1768497509308,10.37397433,142.97,142.93,0.50538427]
[1768497510588,3.37940107,142.97,142.94,0.50538427]
[1768497510788,16.47361128,142.98,142.94,0.50538427]
[1768497510988,6.99371377,142.99,142.94,0.50538427]
[1768497511288,7.29461531,142.99,142.95,0.50538427]
[1768497511503,12.5768469,142.99,142.95,0.50538427]
[1768497511790,5.28223159,142.98,142.94,6.99565077]
[1768497512004,7.50885616,142.99,142.94,6.99565077]
[1768497512186,5.79737398,142.98,142.94,6.99565077]
[1768497513199,7.50918219,142.98,142.93,6.99643181]
[1768497513685,5.79737398,142.97,142.92,6.99690894]
[1768497513893,0.51514239,142.96,142.93,0.50538427]
[1768497514087,5.79737398,142.96,142.92,0.50538427]
[1768497515190,12.79272041,142.96,142.92,0.50538427]
[1768497516191,7.51048882,142.96,142.92,0.50538427]
[1768497516390,7.51048882,142.96,142.93,0.50538427]
[1768497516809,6.57514239,142.99,142.94,0.50538427]
[1768497517118,0.51514239,142.98,142.94,0.50538427]
[1768497517295,7.50923879,142.98,142.94,0.50538427]
[1768497519709,7.50923879,142.98,142.94,7.50132308]
[1768497519914,12.79147038,142.98,142.94,7.50132308]
[1768497521800,6.99372139,142.99,142.95,0.50538427]
[1768497522311,7.50886378,142.99,142.95,0.50538427]
[1768497523210,6.99372139,142.99,142.95,0.50538427]
[1768497523409,0.51514239,143.02,142.96,0.50538427]
[1768497523613,12.78891421,143.03,142.98,0.50538427]
[1768497523795,12.78891421,143.03,142.99,0.50538427]
[1768497524196,0.51514239,143.08,143.0,0.50538427]
[1768497524411,5.79737398,143.06,143.0,2.92e-06]
[1768497524713,5.79737398,143.06,142.99,5.28223159]
[1768497525518,0.51514239,143.05,143.0,6.99300699]
[1768497525817,11.83737398,143.05,143.0,6.99300699]
[1768497526018,0.51514239,143.04,143.0,6.99300699]
[1768497526416,0.51514239,143.04,143.0,7.49839126]
[1768497526807,13.03096213,143.05,143.01,0.50538427]
[1768497527013,13.54610452,143.05,143.01,0.50538427]
[1768497527412,0.51514239,143.07,143.01,0.50538427]
[1768497527612,6.02,143.08,143.04,0.50538427]
[1768497528199,18.16994173,143.09,143.04,0.50538427]
[1768497528505,11.18121704,143.09,143.05,0.50538427]
[1768497528906,0.51514239,143.08,143.05,0.50538427]
[1768497529113,6.53514239,143.08,143.05,0.50538427]
[1768497529897,4.64607465,143.09,143.05,0.50538427]
[1768497530101,10.66607465,143.09,143.05,0.50538427]
[1768497530301,11.18121704,143.09,143.05,0.50538427]
[1768497530523,11.18121704,143.09,143.05,7.49591376]
[1768497531126,5.79200381,143.08,143.04,7.52608295]
[1768497531428,5.79200381,143.08,143.03,5.28223159]
[1768497531429,23.4466989,143.09,143.05,7.52606692]
[1768497531907,6.02,143.08,143.06,0.53550691]
[1768497532414,6.02,143.08,143.06,7.52542054]
[1768497532900,4.64607465,143.09,143.07,0.53550691]
[1768497533105,3.80764676,143.09,143.07,5.28223159]
[1768497533514,3.80764676,143.09,143.06,12.27214522]
[1768497533901,3.80764676,143.09,143.07,5.28223159]
[1768497534323,3.80764676,143.09,143.07,5.25223159]
[1768497534826,3.80764676,143.09,143.07,12.24151016]
[1768497539607,6.48977222,143.08,143.04,8.69076774]
[1768497539919,6.48977222,143.08,143.04,6.99076774]
[1768497540516,0.50977222,143.07,143.03,6.9913624]
[1768497540719,0.50977222,143.07,143.03,12.27359399]
[1768497541111,0.50977222,143.07,143.04,6.99097696]
[1768497542029,6.48977222,143.08,143.04,12.29380182]
[1768497542228,6.48977222,143.08,143.04,7.01157023]
[1768497542525,6.48977222,143.08,143.04,12.29380182]
[1768497543408,0.50977222,143.07,143.03,6.99135381]
[1768497543607,0.50977222,143.07,143.03,12.2735854]
[1768497544215,0.50977222,143.07,143.03,6.99135381]
[1768497544425,0.50977222,143.07,143.04,5.28223159]
[1768497545011,5.96,143.06,143.04,5.28223159]
[1768497545731,5.96,143.06,143.04,12.27304617]
[1768497546735,3.80764676,143.09,143.06,0.53550691]
[1768497546923,3.80764676,143.09,143.06,5.8177385]
[1768497547132,3.80764676,143.09,143.06,0.53550691]
[1768497547434,3.80764676,143.09,143.05,5.8177385]
[1768497547608,3.80764676,143.09,143.06,6.99007409]
[1768497547812,3.80764676,143.09,143.06,6.96007409]
[1768497548413,1e-08,143.09,143.08,0.53550691]
[1768497548617,1e-08,143.09,143.08,5.8177385]
[1768497549212,1e-08,143.09,143.08,0.53550691]
[1768497549825,1e-08,143.09,143.08,7.52460391]
[1768497550717,1e-08,143.09,143.08,0.53550691]
[1768497551033,0.50977223,143.09,143.05,13.46600237]
[1768497551533,0.50977222,143.08,143.04,7.52640053]
[1768497552521,12.7809076,143.09,143.05,0.53550691]
[1768497553157,7.49867601,143.09,143.05,7.52595213]
[1768497553320,0.50977222,143.07,143.03,13.4668363]
[1768497554369,0.50977222,143.07,143.03,7.5268363]
[1768497555051,0.50977222,143.07,143.04,6.99080289]
[1768497556235,1e-08,143.09,143.04,7.5263098]
[1768497556236,0.50977223,143.09,143.04,7.5263098]
[1768497556435,6.42977223,143.09,143.04,7.5263098]
[1768497556625,6.42977223,143.09,143.04,25.00393843]
[1768497556824,1e-08,143.09,143.06,0.53550691]
[1768497557150,1e-08,143.09,143.08,6.989097]
[1768497557460,1e-08,143.09,143.08,6.959097]
[1768497557643,0.2,143.12,143.08,24.43183952]
[1768497558245,5.48223159,143.12,143.08,24.43183952]
[1768497558738,5.48223159,143.12,143.08,24.40183952]
[1768497559548,11.91200381,143.12,143.08,24.40183952]
[1768497560043,6.12,143.12,143.08,24.40183952]
[1768497560246,0.70977222,143.12,143.08,24.40183952]
[1768497560556,0.2,143.13,143.09,0.53550691]
[1768497560724,1e-08,143.13,143.09,0.53550691]
[1768497560928,0.2,143.16,143.12,0.55586106]
[1768497561141,1e-08,143.18,143.15,0.55586106]
[1768497561320,1e-08,143.18,143.16,5.28223159]
[1768497561645,5.48223159,143.24,143.19,0.55586106]
[1768497561835,6.12,143.24,143.19,0.55586106]
[1768497562037,18.38353702,143.24,143.19,0.55586106]
[1768497562340,6.12,143.24,143.19,0.55586106]
[1768497562660,6.12,143.24,143.2,7.53910128]
[1768497562661,0.2,143.24,143.2,7.53910128]
[1768497562824,0.09959068,143.25,143.22,0.55586106]
[1768497563024,0.09959068,143.25,143.22,0.52586106]
[1768497565126,0.09959068,143.25,143.23,0.55080004]
[1768497565325,0.09959068,143.25,143.23,0.52080004]